bitfinex/quotes_SOLUSD_20240616
["timestamp","ask_amount","ask_price","bid_price","bid_amount"]
[1718568338695,31.87826904,148.73,148.69,2.4883]
[1718568338897,2.4879,148.72,148.69,2.4883]
[1718568340095,2.4879,148.72,148.68,24.8849]
[1718568340803,2.4879,148.72,148.69,2.4883]
[1718568341178,2.4879,148.72,148.68,24.8849]
[1718568342082,7.4637,148.72,148.68,24.8849]
[1718568342585,7.4637,148.72,148.68,7.4653]
[1718568342787,7.4637,148.72,148.68,14.9309]
[1718568343097,14.9273,148.72,148.68,7.4653]
[1718568344206,14.9273,148.72,148.68,2.4884]
[1718568345121,2.488,148.71,148.68,2.4884]
[1718568346210,2.488,148.71,148.67,30.2259]
[1718568346829,2.488,148.71,148.68,2.4885]
[1718568347789,2.488,148.71,148.67,30.2259]
[1718568348314,7.4641,148.71,148.67,30.226]
[1718568349817,2.488,148.71,148.68,2.4885]
[1718568349988,2.488,148.71,148.67,30.2259]
[1718568350190,2.488,148.71,148.68,2.4885]
[1718568351202,7.4641,148.71,148.67,30.226]
[1718568351596,2.4882,148.7,148.67,5.34]
[1718568351796,2.4882,148.7,148.67,2.4887]
[1718568353630,24.8808,148.71,148.67,2.4887]
[1718568354601,10.3161,148.71,148.66,17.5918]
[1718568354809,2.4885,148.68,148.64,12.4457]
[1718568354998,2.4886,148.68,148.55,100.0]
[1718568355327,5.34,148.68,148.58,22.6934]
[1718568355622,30.2263,148.68,148.63,27.744]
[1718568356041,12.806,148.68,148.64,7.4675]
[1718568356521,7.8287,148.68,148.64,7.4675]
[1718568356723,7.8287,148.68,148.64,14.9351]
[1718568357136,7.8287,148.68,148.65,2.489]
[1718568357436,12.8063,148.67,148.63,7.4679]
[1718568357620,17.4229,148.66,148.61,27.7471]
[1718568357826,24.8898,148.66,148.62,2.4895]
[1718568358003,2.4891,148.65,148.61,7.8296]
[1718568358198,2.4891,148.65,148.61,7.4691]
[1718568358453,2.4892,148.64,148.6,24.8978]
[1718568358736,2.4894,148.63,148.6,2.4898]
[1718568358906,27.7438,148.64,148.6,2.4898]
[1718568358907,30.2331,148.64,148.6,2.4898]
[1718568359108,30.2331,148.64,148.6,7.4696]
[1718568359109,12.8079,148.64,148.6,7.4696]
[1718568359427,2.4894,148.63,148.59,27.7495]
[1718568359621,30.2326,148.64,148.6,2.4898]
[1718568359826,2.4894,148.63,148.6,2.4898]
[1718568360222,2.4894,148.63,148.59,14.9397]
[1718568360526,7.8294,148.63,148.59,22.4095]
[1718568360714,7.8294,148.63,148.6,2.4898]
[1718568361115,7.8294,148.63,148.56,4.981]
[1718568361116,7.4698,148.6,148.56,4.981]
[1718568361331,5.34,148.6,148.57,2.4902]
[1718568361635,45.0619,148.62,148.59,2.49]
[1718568361636,20.4432,148.62,148.59,2.49]
[1718568361818,20.4432,148.62,148.58,7.4705]
[1718568361819,22.9328,148.62,148.58,7.4705]
[1718568362127,27.9119,148.62,148.58,7.4705]
[1718568362522,27.9119,148.62,148.58,2.4901]
[1718568363329,22.9328,148.62,148.58,7.4705]
[1718568363538,22.9328,148.62,148.58,14.9411]
[1718568363705,20.4432,148.62,148.59,2.49]
[1718568364032,22.9328,148.62,148.58,7.4705]
[1718568364220,17.5928,148.62,148.58,7.4705]
[1718568364612,17.5928,148.62,148.58,2.4901]
[1718568365005,100.0,148.67,148.57,5.34]
[1718568365006,16.6229,148.66,148.57,5.34]
[1718568365205,16.6229,148.66,148.61,2.4897]
[1718568365206,7.4673,148.65,148.61,2.4897]
[1718568365421,2.4894,148.63,148.6,5.34]
[1718568365618,2.4894,148.63,148.59,12.8099]
[1718568366334,2.4896,148.62,148.58,12.8105]
[1718568366506,27.7461,148.62,148.58,2.4901]
[1718568366706,30.2358,148.62,148.58,2.4901]
[1718568367221,12.8088,148.62,148.58,2.4901]
[1718568367426,7.8297,148.62,148.58,7.4705]
[1718568367745,2.4897,148.61,148.57,24.9027]
[1718568368032,2.4897,148.61,148.58,2.4902]
[1718568368334,7.8296,148.62,148.58,14.9412]
[1718568368628,12.8088,148.62,148.58,2.4902]
[1718568368838,2.4897,148.61,148.58,2.4902]
[1718568369209,30.2359,148.62,148.58,2.4902]
[1718568369728,30.236,148.62,148.58,2.4902]
[1718568370237,12.8089,148.62,148.58,7.4706]
[1718568371026,7.8297,148.62,148.58,14.9412]
[1718568372140,5.34,148.62,148.59,2.49]
[1718568372349,7.8296,148.62,148.58,24.9018]
[1718568373048,12.8087,148.62,148.58,2.49]
[1718568373547,12.8087,148.62,148.58,7.4704]
[1718568374630,7.4687,148.62,148.58,7.4704]
[1718568374832,5.34,148.62,148.59,2.49]
[1718568375031,7.8296,148.62,148.58,24.9019]
[1718568375223,2.4896,148.62,148.58,24.9019]
[1718568376040,2.4896,148.62,148.59,2.49]
[1718568376429,2.4896,148.62,148.58,24.9019]
[1718568376825,2.4896,148.62,148.58,7.4705]
[1718568377022,7.4687,148.62,148.58,7.4705]
[1718568378756,7.4687,148.62,148.58,2.4901]
[1718568379932,2.4896,148.62,148.58,14.9412]
[1718568380131,2.4896,148.62,148.58,7.4705]
[1718568380752,2.4896,148.62,148.58,14.9411]
[1718568380954,2.4895,148.62,148.58,22.4119]
[1718568381129,2.4895,148.62,148.58,24.902]
[1718568381667,9.48369069,148.63,148.59,7.4699]
[1718568381949,7.4682,148.63,148.59,7.4699]
[1718568382331,2.4894,148.63,148.59,7.4699]
[1718568382830,2.4895,148.62,148.59,2.4899]
[1718568383030,14.9365,148.63,148.59,2.4899]
[1718568383634,2.4895,148.62,148.58,24.9014]
[1718568384755,2.4895,148.62,148.59,2.49]
[1718568385050,24.8941,148.63,148.59,2.49]
[1718568385432,2.4895,148.62,148.58,22.4114]
[1718568385639,2.4895,148.62,148.59,2.49]
[1718568386837,2.4895,148.62,148.58,24.9014]
[1718568387951,6.99614528,148.64,148.61,10.3193]
[1718568388131,2.489,148.65,148.62,5.34]
[1718568388337,2.4891,148.65,148.62,5.34]
[1718568388536,7.4672,148.65,148.62,5.34]
[1718568388755,14.9344,148.65,148.61,7.8295]
[1718568389048,7.4672,148.65,148.61,12.8089]
[1718568390677,2.4891,148.65,148.61,12.8089]
[1718568391472,2.4891,148.65,148.61,20.278]
[1718568391855,48.50777236,148.66,148.62,2.4895]
[1718568392070,19.1119,148.66,148.62,14.9371]
[1718568392576,24.0897,148.66,148.62,7.4685]
[1718568392759,31.08512709,148.66,148.62,7.4685]
[1718568392964,22.3993,148.67,148.62,22.4057]
[1718568393157,2.4889,148.66,148.62,30.2351]
[1718568393676,7.4667,148.66,148.62,12.8084]
[1718568394580,12.33563038,148.68,148.63,0.17]
[1718568394772,6.99563038,148.68,148.66,7.8288]
[1718568395088,2.4883,148.7,148.67,7.8287]
[1718568395272,2.4883,148.7,148.67,2.4887]
[1718568395778,7.4647,148.7,148.67,5.34]
[1718568395966,2.4883,148.69,148.67,5.34]
[1718568396168,2.4883,148.69,148.66,5.34]
[1718568396364,7.4651,148.69,148.66,5.34]
[1718568396665,2.4887,148.67,148.64,2.4892]
[1718568396874,2.4887,148.67,148.64,7.8292]
[1718568397262,7.4662,148.67,148.64,5.34]
[1718568397459,24.8861,148.68,148.64,12.8075]
[1718568397973,7.466,148.68,148.64,20.2751]
[1718568398562,7.466,148.68,148.64,12.8075]
[1718568399375,7.466,148.68,148.64,20.2751]
[1718568400390,2.4887,148.68,148.64,20.2751]
[1718568400690,2.4887,148.68,148.65,2.489]
[1718568400987,7.4658,148.68,148.64,12.8075]
[1718568401284,7.4658,148.68,148.64,20.2752]
[1718568401490,2.4887,148.68,148.64,20.2752]
[1718568401787,2.4887,148.68,148.65,2.489]
[1718568401960,2.4887,148.68,148.64,30.2321]
[1718568402488,2.4887,148.68,148.65,2.489]
[1718568404890,2.4887,148.68,148.64,30.232]
[1718568405187,7.4658,148.68,148.64,30.232]
[1718568405564,7.4658,148.68,148.64,12.8074]
[1718568406480,2.4888,148.67,148.63,27.9136]
[1718568406698,12.4437,148.67,148.63,2.4893]
[1718568407003,2.4889,148.66,148.63,2.4893]
[1718568407698,24.8874,148.67,148.63,2.4893]
[1718568408588,14.9325,148.67,148.63,7.468]
[1718568409087,7.4663,148.67,148.63,7.468]
[1718568409797,7.4663,148.67,148.63,14.9361]
[1718568411594,2.4888,148.67,148.64,2.4892]
[1718568412883,46.6772,148.68,148.64,2.4892]
[1718568413184,2.4887,148.67,148.64,2.4892]
[1718568413386,46.6772,148.68,148.64,2.4892]
[1718568413586,2.4887,148.67,148.64,2.4892]
[1718568414490,46.6772,148.68,148.64,2.4892]
[1718568414678,2.4887,148.67,148.64,2.4892]
[1718568415092,5.34,148.67,148.58,15.3747]
[1718568415297,24.8895,148.66,148.62,2.4895]
[1718568415866,31.88435401,148.66,148.62,2.4895]
[1718568416068,14.46175401,148.66,148.62,7.4686]
[1718568416406,6.99485401,148.66,148.63,2.4893]
[1718568416601,6.99485401,148.66,148.63,7.4681]
[1718568417708,6.99485401,148.66,148.64,4.9783]
[1718568417918,18.9393,148.68,148.64,14.9348]
[1718568418211,18.9393,148.68,148.64,24.8914]
[1718568418370,18.9393,148.68,148.64,22.4024]
[1718568418569,23.9164,148.68,148.64,7.4674]
[1718568419599,31.3821,148.68,148.64,2.4891]
[1718568420302,2.4887,148.67,148.64,2.4891]
[1718568420480,2.4887,148.67,148.63,30.2326]
[1718568420676,2.4887,148.67,148.64,2.4892]
[1718568420882,16.4507,148.68,148.64,22.4026]
[1718568421105,2.4886,148.68,148.64,30.2317]
[1718568421278,2.4887,148.67,148.64,7.8291]
[1718568421482,14.9315,148.68,148.64,7.8291]
[1718568421703,14.9315,148.68,148.64,2.4891]
[1718568422002,7.4657,148.68,148.64,7.4675]
[1718568422210,7.4657,148.68,148.64,12.8075]
[1718568422584,24.8858,148.68,148.63,22.4038]
[1718568422922,22.3972,148.68,148.64,7.8291]
[1718568423115,7.4657,148.68,148.64,12.8075]
[1718568423400,2.4887,148.67,148.64,7.8291]
[1718568423590,24.8858,148.68,148.64,7.8291]
[1718568424106,7.4658,148.68,148.64,12.8075]
[1718568424305,14.9315,148.68,148.64,7.8291]
[1718568424814,9.48221422,148.7,148.66,12.444]
[1718568425106,27.4652,148.69,148.66,5.34]
[1718568425881,42.3956,148.69,148.66,5.34]
[1718568426083,2.4885,148.68,148.66,5.34]
[1718568426389,7.4656,148.68,148.66,5.34]
[1718568428124,2.4887,148.67,148.66,5.34]
[1718568429195,7.4661,148.67,148.66,5.34]
[1718568429396,14.9323,148.67,148.65,5.34]
[1718568429713,14.9324,148.67,148.65,5.34]
[1718568430206,7.4662,148.67,148.65,5.34]
[1718568430805,2.4889,148.66,148.65,5.34]
[1718568431025,24.8874,148.67,148.65,5.34]
[1718568431384,24.8874,148.67,148.64,5.34]
[1718568433809,14.9325,148.67,148.64,5.34]
[1718568434204,7.4662,148.67,148.64,5.34]
[1718568434906,7.4662,148.67,148.65,5.34]
[1718568436408,20.0,148.69,148.62,15.766]
[1718568436606,2.4893,148.64,148.61,2.4897]
[1718568436910,7.4669,148.66,148.63,5.34]
[1718568438388,7.4677,148.64,148.61,0.17]
[1718568438594,7.4677,148.64,148.61,5.51]
[1718568439015,2.4893,148.64,148.61,2.6597]
[1718568439218,7.4677,148.64,148.61,0.17]
[1718568439388,2.4893,148.64,148.61,7.9997]
[1718568439789,7.4675,148.65,148.61,20.4482]
[1718568439990,2.4892,148.65,148.62,2.4895]
[1718568440197,7.4673,148.65,148.61,12.979]
[1718568440503,24.8907,148.65,148.61,7.9996]
[1718568440911,7.4673,148.65,148.61,12.9789]
[1718568441216,2.4892,148.64,148.6,24.8979]
[1718568441413,2.4894,148.63,148.6,7.8297]
[1718568441721,12.4463,148.64,148.6,7.8297]
[1718568441935,12.4463,148.64,148.6,12.8094]
[1718568443356,7.4678,148.64,148.61,2.4897]
[1718568443633,5.34,148.63,148.55,5.33053589]
[1718568443836,7.4692,148.61,148.57,24.9033]
[1718568444235,2.4899,148.6,148.57,2.4902]
[1718568444526,12.8092,148.61,148.57,7.471]
[1718568444733,7.8298,148.61,148.58,2.4902]
[1718568445027,12.8092,148.61,148.57,14.9422]
[1718568445231,12.8092,148.61,148.58,2.4902]
[1718568445842,7.8298,148.61,148.58,2.4902]
[1718568446030,2.4898,148.61,148.58,2.4902]
[1718568446637,2.4898,148.61,148.57,24.9038]
[1718568447018,2.4899,148.6,148.57,2.4902]
[1718568448239,22.4092,148.6,148.56,2.4905]
[1718568448424,24.8992,148.6,148.56,7.4716]
[1718568449230,22.4092,148.6,148.56,7.4716]
[1718568449534,24.8992,148.6,148.56,7.4716]
[1718568450311,2.4901,148.59,148.56,2.4905]
[1718568450931,2.4901,148.59,148.55,27.7558]
[1718568451238,2.4901,148.59,148.56,2.4905]
[1718568451736,24.8992,148.6,148.56,2.4905]
[1718568452040,2.4901,148.59,148.56,2.4905]
[1718568452240,7.4702,148.59,148.55,24.9063]
[1718568452416,7.4702,148.59,148.55,30.2463]
[1718568452747,7.4702,148.59,148.56,2.4905]
[1718568453041,2.4901,148.59,148.56,2.4905]
[1718568453230,2.4901,148.59,148.56,7.8305]
[1718568453436,24.8993,148.6,148.56,12.8116]
[1718568454052,2.4897,148.61,148.57,12.4516]
[1718568454221,27.4692,148.61,148.57,24.9033]
[1718568454641,34.9384,148.61,148.57,7.4708]
[1718568454946,5.34,148.59,148.54,2.4907]
[1718568455143,2.4904,148.57,148.54,2.4908]
[1718568455351,7.4709,148.58,148.54,7.4725]
[1718568455518,2.4903,148.58,148.55,2.4907]
[1718568456730,2.4903,148.58,148.54,27.7578]
[1718568457037,2.4903,148.58,148.54,30.2485]
[1718568457637,7.4708,148.58,148.54,30.2485]
[1718568457934,2.4904,148.57,148.54,2.4907]
[1718568458143,2.4904,148.57,148.54,7.8307]
[1718568458845,24.9024,148.58,148.54,7.4724]
[1718568459028,2.4904,148.57,148.54,12.8124]
[1718568459229,2.4904,148.57,148.54,7.8307]
[1718568459818,24.9024,148.58,148.54,12.8124]
[1718568460444,7.4708,148.58,148.54,20.2851]
[1718568460747,2.4903,148.58,148.55,2.4907]
[1718568462122,12.4513,148.58,148.54,7.4724]
[1718568462440,12.4513,148.58,148.54,2.4907]
[1718568462441,2.4904,148.57,148.54,2.4907]
[1718568463044,24.9025,148.58,148.54,7.4725]
[1718568463423,7.4708,148.58,148.55,2.4907]
[1718568463737,2.4903,148.58,148.55,2.4907]
[1718568466576,7.4709,148.58,148.54,20.2853]
[1718568467079,7.4709,148.58,148.55,2.4907]
[1718568467367,2.4903,148.58,148.55,2.4907]
[1718568471163,7.4707,148.58,148.54,24.9087]
[1718568471657,2.4903,148.58,148.55,2.4907]
[1718568471858,2.4903,148.58,148.54,22.418]
[1718568471859,14.9414,148.58,148.54,7.4725]
[1718568472273,2.4904,148.57,148.54,7.4725]
[1718568472876,14.9414,148.58,148.54,7.4725]
[1718568473374,24.9024,148.58,148.54,7.4725]
[1718568475482,2.4904,148.57,148.54,2.4907]
[1718568476284,9.47942937,148.57,148.54,2.4907]
[1718568476469,6.98902937,148.57,148.54,7.4725]
[1718568476885,6.98902937,148.57,148.54,14.9452]
[1718568477283,6.98902937,148.57,148.54,7.4725]
[1718568477585,6.98902937,148.57,148.54,2.4907]
[1718568477981,9.47942937,148.57,148.54,2.4907]
[1718568478470,6.98902937,148.57,148.54,2.4907]
[1718568479563,6.98902937,148.57,148.54,7.4725]
[1718568482169,6.98902937,148.57,148.54,14.9451]
[1718568482581,6.98902937,148.57,148.54,7.4725]
[1718568483078,6.98902937,148.57,148.54,14.9452]
[1718568485501,6.98902937,148.57,148.54,7.4725]
[1718568485998,6.98902937,148.57,148.54,2.4907]
[1718568486198,9.47942937,148.57,148.54,2.4907]
[1718568486590,6.98902937,148.57,148.54,2.4907]
[1718568488201,9.47942937,148.57,148.54,2.4907]
[1718568488394,6.98902937,148.57,148.54,2.4907]
[1718568488601,6.98902937,148.57,148.5,7.4744]
[1718568488903,6.98902937,148.57,148.51,22.4223]
[1718568488904,2.4907,148.55,148.51,22.4223]
[1718568489123,2.4907,148.55,148.52,2.4912]
[1718568489284,42.4156,148.56,148.52,7.4736]
[1718568489285,32.8121,148.56,148.52,7.4736]
[1718568489619,6.98859969,148.55,148.52,7.4736]
[1718568490385,6.98859969,148.55,148.52,2.4912]
[1718568492722,9.47929969,148.55,148.52,2.4912]
[1718568493497,9.47929969,148.55,148.51,24.9133]
[1718568493812,14.46089969,148.55,148.51,4.9827]
[1718568494003,9.47929969,148.55,148.51,7.4739]
[1718568494502,9.47929969,148.55,148.51,14.9481]
[1718568494705,9.47929969,148.55,148.52,2.4912]
[1718568494912,6.98859969,148.55,148.52,2.4912]
[1718568499816,6.98859969,148.55,148.52,7.4736]
[1718568500195,9.47929969,148.55,148.51,30.2537]
[1718568500400,6.98859969,148.55,148.52,2.4911]
[1718568500799,9.47929969,148.55,148.52,2.4911]
[1718568503228,2.4909,148.54,148.51,2.4913]
[1718568503419,2.4909,148.54,148.5,24.9146]
[1718568503600,7.4727,148.54,148.5,7.4743]
[1718568503896,2.4909,148.54,148.5,14.9489]
[1718568504229,31.89619969,148.55,148.51,2.4914]
[1718568505827,2.4909,148.54,148.51,2.4914]
[1718568506134,2.4909,148.54,148.5,30.2552]
[1718568506347,12.32859969,148.55,148.45,6.1292]
[1718568506499,2.4914,148.51,148.47,20.2922]
[1718568506825,26.98453758,148.54,148.51,7.4739]
[1718568507807,29.47543758,148.54,148.51,5.34]
[1718568508112,34.45733758,148.54,148.51,5.34]
[1718568509704,26.98453758,148.54,148.51,7.8312]
[1718568509918,14.9443,148.55,148.52,5.34]
[1718568510813,2.4909,148.54,148.52,5.34]
[1718568511017,2.4909,148.54,148.51,7.8312]
[1718568511331,7.4727,148.54,148.51,5.34]
[1718568514568,14.9454,148.54,148.51,5.34]
[1718568514749,7.4727,148.54,148.51,5.34]
[1718568516461,28.67410834,148.57,148.53,5.34]
[1718568516462,12.4529,148.56,148.53,5.34]
[1718568516625,7.4718,148.56,148.54,5.34]
[1718568517031,7.4718,148.56,148.53,5.34]
[1718568517323,12.4529,148.56,148.53,5.34]
[1718568517525,14.9436,148.56,148.53,5.34]
[1718568519177,7.4719,148.56,148.53,5.34]
[1718568519465,2.4904,148.57,148.54,2.4908]
[1718568519618,2.4904,148.57,148.55,5.34]
[1718568519824,7.4712,148.57,148.55,5.34]
[1718568520375,14.9424,148.57,148.55,5.34]
[1718568520657,7.4712,148.57,148.55,5.34]
[1718568520952,7.4712,148.57,148.53,7.4728]
[1718568521131,7.4712,148.57,148.55,5.34]
[1718568521467,2.4904,148.57,148.55,5.34]
[1718568521826,7.4712,148.57,148.55,5.34]
[1718568522533,14.9424,148.57,148.55,5.34]
[1718568523069,7.02097676,148.6,148.55,5.34]
[1718568523278,9.51087676,148.6,148.58,5.34]
[1718568523459,22.4081,148.61,148.58,5.34]
[1718568523767,2.4899,148.6,148.58,5.34]
[1718568524333,7.4697,148.6,148.58,5.34]
[1718568524934,2.49,148.59,148.58,5.34]
[1718568525135,22.4107,148.59,148.55,2.4905]
[1718568525351,2.4902,148.58,148.56,5.34]
[1718568525660,14.9404,148.59,148.56,5.34]
[1718568526438,2.4902,148.58,148.56,5.34]
[1718568527441,24.9008,148.59,148.56,5.34]
[1718568528259,7.4703,148.59,148.56,7.8305]
[1718568528933,2.4902,148.58,148.56,5.34]
[1718568529140,24.9008,148.59,148.56,5.34]
[1718568529354,7.4703,148.59,148.55,22.4164]
[1718568529671,7.4703,148.59,148.56,7.8305]
[1718568529860,4.9801,148.59,148.56,7.8305]
[1718568530051,2.4901,148.59,148.56,7.8305]
[1718568532475,22.4097,148.6,148.56,12.8116]
[1718568532653,22.4097,148.6,148.57,5.34]
[1718568532855,24.9795,148.61,148.57,4.9806]
[1718568533053,14.9385,148.61,148.58,5.34]
[1718568533256,7.4693,148.61,148.58,7.8302]
[1718568533480,2.4899,148.6,148.58,5.34]
[1718568533652,7.4693,148.61,148.58,5.34]
[1718568533851,7.4693,148.61,148.58,7.8302]
[1718568534274,7.4693,148.61,148.58,5.34]
[1718568534571,14.9385,148.61,148.58,5.34]
[1718568534982,2.4899,148.6,148.58,5.34]
[1718568536047,7.4697,148.6,148.58,5.34]
[1718568537060,7.02078437,148.62,148.54,12.8123]
[1718568537264,2.4903,148.58,148.56,5.34]
[1718568537771,7.4708,148.58,148.56,5.34]
[1718568538157,2.4903,148.58,148.56,5.34]
[1718568539370,2.49,148.59,148.57,5.34]
[1718568539862,2.4899,148.6,148.57,7.8303]
[1718568540255,2.49,148.59,148.57,5.34]
[1718568541057,2.49,148.59,148.54,7.4725]
[1718568541058,2.4902,148.58,148.54,7.4725]
[1718568541276,7.4707,148.58,148.55,7.8307]
[1718568541473,2.4902,148.58,148.55,7.8307]
[1718568541790,24.9013,148.59,148.56,5.34]
[1718568542188,24.9012,148.59,148.56,5.34]
[1718568542696,17.4307,148.59,148.56,5.34]
[1718568542995,7.4704,148.59,148.56,5.34]
[1718568544596,2.4902,148.58,148.56,5.34]
[1718568544784,14.9407,148.59,148.56,5.34]
[1718568545772,2.49,148.6,148.57,7.8303]
[1718568546160,2.49,148.6,148.58,5.34]
[1718568546688,7.4698,148.6,148.58,5.34]
[1718568548669,14.9395,148.6,148.58,5.34]
[1718568548870,2.49,148.59,148.58,5.34]
[1718568550293,7.4701,148.59,148.58,5.34]
[1718568550470,7.4701,148.59,148.57,5.34]
[1718568552110,7.02078437,148.62,148.57,5.34]
[1718568552294,2.4897,148.61,148.59,5.34]
[1718568552495,2.4897,148.61,148.6,5.34]
[1718568552663,14.9383,148.61,148.6,5.34]
[1718568552994,14.9383,148.61,148.59,5.34]
[1718568553289,22.4075,148.61,148.57,7.4708]
[1718568553482,22.4075,148.61,148.59,5.34]
[1718568553483,24.8973,148.61,148.59,5.34]
[1718568553694,7.4692,148.61,148.59,5.34]
[1718568554493,2.4898,148.61,148.59,5.34]
[1718568554696,7.4692,148.61,148.59,5.34]
[1718568555703,14.9384,148.61,148.59,5.34]
[1718568556099,2.4899,148.6,148.59,5.34]
[1718568560203,24.8973,148.61,148.59,5.34]
[1718568560400,7.4692,148.61,148.59,5.34]
[1718568563008,4.9794,148.61,148.59,5.34]
[1718568563188,2.4899,148.6,148.59,5.34]
[1718568567594,2.4899,148.6,148.56,2.4905]
[1718568567595,7.4703,148.59,148.56,2.4905]
[1718568567802,7.4703,148.59,148.57,5.34]
[1718568567803,2.4901,148.59,148.57,5.34]
[1718568568113,7.4702,148.59,148.57,5.34]
[1718568568289,2.4901,148.59,148.57,5.34]
[1718568568807,2.4901,148.59,148.58,5.34]
[1718568569010,24.8996,148.6,148.58,5.34]
[1718568569891,7.47,148.6,148.58,5.34]
[1718568571015,14.9397,148.6,148.56,24.9052]
[1718568571325,24.8994,148.6,148.58,5.34]
[1718568571501,7.47,148.6,148.58,5.34]
[1718568572019,2.49,148.6,148.58,5.34]
[1718568573016,7.4698,148.6,148.58,5.34]
[1718568573416,7.4698,148.6,148.57,7.8304]
[1718568575217,2.49,148.6,148.57,12.8112]
[1718568575396,2.49,148.6,148.58,5.34]
[1718568575596,7.4689,148.62,148.59,5.34]
[1718568575810,2.4896,148.62,148.6,5.34]
[1718568576213,7.4687,148.62,148.6,5.34]
[1718568577221,14.9374,148.62,148.6,5.34]
[1718568577709,2.4897,148.61,148.6,5.34]
[1718568578219,2.4897,148.61,148.58,7.4704]
[1718568578394,2.4897,148.61,148.58,2.4901]
[1718568578598,2.4897,148.61,148.59,5.34]
[1718568579416,7.4691,148.61,148.59,5.34]
[1718568579989,22.4063,148.62,148.59,7.83]
[1718568580215,2.4897,148.61,148.59,5.34]
[1718568580397,24.8959,148.62,148.59,5.34]
[1718568580598,24.8959,148.62,148.6,5.34]
[1718568581011,2.4897,148.61,148.6,5.34]
[1718568582131,7.4691,148.61,148.6,5.34]
[1718568582620,2.4897,148.61,148.6,5.34]
[1718568582797,7.4699,148.6,148.56,12.4523]
[1718568582993,7.4699,148.6,148.59,5.34]
[1718568583820,2.49,148.6,148.59,5.34]
[1718568585718,24.8979,148.61,148.59,5.34]
[1718568586209,2.4898,148.61,148.59,5.34]
[1718568587707,27.01720791,148.63,148.6,6.68595165]
[1718568587708,7.01720791,148.63,148.6,6.68595165]
[1718568587906,16.6588,148.69,148.62,5.34]
[1718568587907,17.4215,148.67,148.62,5.34]
[1718568588202,2.4887,148.67,148.66,5.34]
[1718568588525,24.8857,148.68,148.66,5.34]
[1718568588710,2.4887,148.67,148.66,5.34]
[1718568589613,7.4661,148.67,148.66,5.34]
[1718568590906,24.8872,148.67,148.66,5.34]
[1718568591133,2.4889,148.66,148.63,25.0629]
[1718568591435,2.4889,148.66,148.65,5.34]
[1718568592023,22.3985,148.67,148.65,5.34]
[1718568592408,2.4889,148.66,148.65,5.34]
[1718568592607,2.4889,148.66,148.63,7.6378]
[1718568593008,2.4889,148.66,148.63,25.0634]
[1718568593725,7.4667,148.66,148.63,2.6592]
[1718568594142,7.4667,148.66,148.63,7.6379]
[1718568594323,2.4889,148.66,148.63,7.6379]
[1718568595222,24.8875,148.67,148.64,2.4892]
[1718568595420,24.8875,148.67,148.63,7.6379]
[1718568595421,2.4889,148.66,148.63,7.6379]
[1718568595624,2.4889,148.66,148.63,7.4679]
[1718568596327,7.4664,148.67,148.63,23.74964465]
[1718568596512,2.4888,148.67,148.64,7.4675]
[1718568596929,7.4662,148.67,148.64,7.4675]
[1718568597151,7.4662,148.67,148.64,2.4891]
[1718568597521,14.9324,148.67,148.64,2.4891]
[1718568598222,14.9324,148.67,148.63,26.23874465]